bitfinex-derivatives/quotes_BTCF0:USTF0_20250913
["timestamp","ask_amount","ask_price","bid_price","bid_amount"]
[1757779954821,1.4483428,115710.0,115700.0,0.0352]
[1757779956015,0.38241506,115710.0,115700.0,0.0382]
[1757779956216,1.24489506,115710.0,115700.0,0.0382]
[1757779956419,0.48405893,115710.0,115700.0,0.0402]
[1757779956722,1.34653893,115710.0,115700.0,0.2902]
[1757779956913,0.98573893,115710.0,115700.0,0.39184387]
[1757779957113,0.12325893,115710.0,115700.0,0.39184387]
[1757779957326,0.02161506,115710.0,115700.0,0.97428774]
[1757779957517,1.32488387,115720.0,115710.0,0.03588]
[1757779957716,1.44816641,115720.0,115710.0,0.03588]
[1757779958414,1.45075641,115720.0,115710.0,0.03588]
[1757779958612,1.45075641,115720.0,115710.0,0.03688]
[1757779959014,1.45075641,115720.0,115710.0,0.01661]
[1757779959414,1.45075641,115720.0,115710.0,0.03888]
[1757779960418,1.34914003,115720.0,115710.0,0.03888]
[1757779962828,0.48670003,115720.0,115710.0,0.03888]
[1757779963028,1.34882003,115720.0,115710.0,0.03888]
[1757779963924,1.24710867,115720.0,115710.0,0.30620883]
[1757779964228,1.34878003,115720.0,115710.0,0.30620883]
[1757779965425,1.24710867,115720.0,115710.0,0.30620883]
[1757779965622,1.34878003,115720.0,115710.0,0.30620883]
[1757779966725,1.34866003,115720.0,115710.0,0.30620883]
[1757779966919,0.38502867,115720.0,115710.0,0.30620883]
[1757779967123,1.24690867,115720.0,115710.0,0.30620883]
[1757779967324,1.34858003,115720.0,115710.0,0.30620883]
[1757779968433,1.35152003,115720.0,115710.0,0.27620883]
[1757779968631,0.38796867,115720.0,115710.0,0.28981883]
[1757779968835,1.35144003,115720.0,115710.0,0.28981883]
[1757779970436,1.24976867,115720.0,115710.0,0.28981883]
[1757779970730,1.35144003,115720.0,115710.0,0.28981883]
[1757779970935,1.24976867,115720.0,115710.0,0.28981883]
[1757779971136,1.35144003,115720.0,115710.0,0.28981883]
[1757779973128,1.24976867,115720.0,115710.0,0.28981883]
[1757779973432,1.35144003,115720.0,115710.0,0.28981883]
[1757779977142,1.24976867,115720.0,115710.0,0.28981883]
[1757779977438,1.35144003,115720.0,115710.0,0.03981883]
[1757779977639,1.35144003,115720.0,115710.0,0.03093883]
[1757779977939,1.35144003,115720.0,115710.0,0.05362883]
[1757779979941,1.35092003,115720.0,115710.0,0.05362883]
[1757779980146,1.35088003,115720.0,115710.0,0.05362883]
[1757779981644,1.24920867,115720.0,115710.0,0.05362883]
[1757779981943,1.35088003,115720.0,115710.0,0.05362883]
[1757779982338,1.24920867,115720.0,115710.0,0.05362883]
[1757779982547,0.38796867,115720.0,115710.0,0.05362883]
[1757779982737,1.35076003,115720.0,115710.0,0.05362883]
[1757779983646,1.35083004,115720.0,115710.0,0.05362883]
[1757779985446,1.24915868,115720.0,115710.0,0.05362883]
[1757779985648,1.35083004,115720.0,115710.0,0.05362883]
[1757779986648,1.24915868,115720.0,115710.0,0.05362883]
[1757779986846,1.35067004,115720.0,115710.0,0.05362883]
[1757779988346,1.24899868,115720.0,115710.0,0.05362883]
[1757779988546,1.35067004,115720.0,115710.0,0.05362883]
[1757779989442,0.48971004,115720.0,115710.0,0.05362883]
[1757779989646,1.35051004,115720.0,115710.0,0.05362883]
[1757779990250,0.48971004,115720.0,115710.0,0.05362883]
[1757779990548,1.35043004,115720.0,115710.0,0.05362883]
[1757779990851,1.24875868,115720.0,115710.0,0.05362883]
[1757779991047,1.35043004,115720.0,115710.0,0.05362883]
[1757779991858,0.48971004,115720.0,115710.0,0.05362883]
[1757779992050,1.35043004,115720.0,115710.0,0.05362883]
[1757779993150,1.24867868,115720.0,115710.0,0.05362883]
[1757779993347,1.35035004,115720.0,115710.0,0.05362883]
[1757779993956,1.24867868,115720.0,115710.0,0.05362883]
[1757779994359,1.35035004,115720.0,115710.0,0.05362883]
[1757779994551,1.24867868,115720.0,115710.0,0.05362883]
[1757779994854,0.48971004,115720.0,115710.0,0.05362883]
[1757779995055,1.24851868,115720.0,115710.0,0.05362883]
[1757779995353,1.35019004,115720.0,115710.0,0.05362883]
[1757779996757,1.24851868,115720.0,115710.0,0.05362883]
[1757779996951,1.35019004,115720.0,115710.0,0.05362883]
[1757779997558,1.35007004,115720.0,115710.0,0.05362883]
[1757779998358,1.24839868,115720.0,115710.0,0.05362883]
[1757779998955,1.35007004,115720.0,115710.0,0.05362883]
[1757779999360,1.24839868,115720.0,115710.0,0.05362883]
[1757779999554,1.35007004,115720.0,115710.0,0.05362883]
[1757780000252,0.48971004,115720.0,115710.0,0.05362883]
[1757780000447,0.38805852,115720.0,115710.0,0.05362883]
[1757780000653,0.48972988,115720.0,115710.0,0.05362883]
[1757780003654,0.38805852,115720.0,115710.0,0.05362883]
[1757780003856,0.48972988,115720.0,115710.0,0.05362883]
[1757780005362,0.38805852,115720.0,115710.0,0.05362883]
[1757780006361,0.48972988,115720.0,115710.0,0.05362883]
[1757780007649,0.38511852,115720.0,115710.0,0.15362883]
[1757780007855,0.02431852,115720.0,115710.0,0.67530019]
[1757780008054,0.02431852,115720.0,115710.0,0.92530019]
[1757780008757,0.02431852,115720.0,115710.0,0.93391144]
[1757780009162,0.02431852,115720.0,115710.0,1.29471144]
[1757780009561,0.02431852,115720.0,115710.0,1.19304008]
[1757780009760,0.02431852,115720.0,115710.0,1.29471144]
[1757780010061,0.00259,115720.0,115710.0,1.29471144]
[1757780011260,0.00259,115720.0,115710.0,1.3963828]
[1757780011467,0.0201036,115730.0,115720.0,0.03468]
[1757780011765,0.0201036,115730.0,115720.0,1.88671136]
[1757780012462,1e-08,115730.0,115720.0,1.88671136]
[1757780012660,1e-08,115730.0,115720.0,2.13671136]
[1757780013260,1.32497136,115760.0,115750.0,0.03468]
[1757780013455,1.3466699,115760.0,115750.0,0.03468]
[1757780013658,1.24499854,115760.0,115750.0,0.03468]
[1757780013855,1.3466699,115760.0,115750.0,0.03468]
[1757780014457,1.4160655,115760.0,115750.0,0.03468]
[1757780014867,0.03063854,115760.0,115750.0,0.13635136]
[1757780015160,0.03063854,115760.0,115750.0,0.62635136]
[1757780015765,0.03063854,115760.0,115750.0,0.52468]
[1757780015967,0.03063854,115760.0,115750.0,0.88548]
[1757780016170,0.006,115760.0,115750.0,2.09643136]
[1757780016468,0.36374,115780.0,115770.0,0.03468]
[1757780016768,0.38541317,115780.0,115770.0,0.03468]
[1757780017266,0.36374,115780.0,115770.0,0.03268]
[1757780017461,0.36374,115780.0,115770.0,0.02968]
[1757780017967,0.36674,115780.0,115770.0,0.02968]
[1757780018473,0.36874,115780.0,115770.0,0.02968]
[1757780019269,0.00794,115780.0,115770.0,0.02968]
[1757780022667,0.10948175,115780.0,115770.0,0.02968]
[1757780023472,0.00794,115780.0,115770.0,0.02968]
[1757780023673,0.10948175,115780.0,115770.0,0.02968]
[1757780025281,0.00794,115780.0,115770.0,0.02968]
[1757780025569,0.10948175,115780.0,115770.0,0.14968]
[1757780025771,0.10948175,115780.0,115770.0,0.25122175]
[1757780026069,0.00794,115780.0,115770.0,0.25122175]
[1757780026370,0.13118897,115780.0,115770.0,0.02968]
[1757780026572,0.02964722,115780.0,115770.0,0.02968]
[1757780026768,0.13118897,115780.0,115770.0,0.02968]
[1757780027770,0.02964722,115780.0,115770.0,0.02968]
[1757780027973,0.13118897,115780.0,115770.0,0.02968]
[1757780028163,0.23273072,115780.0,115770.0,0.02968]
[1757780028363,0.02964722,115780.0,115770.0,0.02968]
[1757780028566,0.59353072,115780.0,115770.0,0.02968]
[1757780028766,0.69507247,115780.0,115760.0,0.03044512]
[1757780029076,0.5748235,115770.0,115760.0,0.05145512]
[1757780029478,0.596536,115770.0,115760.0,0.05145512]
[1757780029872,0.596536,115770.0,115760.0,0.01734512]
[1757780030274,0.596536,115770.0,115750.0,0.0131]
[1757780030473,0.2140235,115760.0,115750.0,0.03411]
[1757780030671,0.03265624,115760.0,115750.0,0.03411]
[1757780030879,0.23573974,115760.0,115750.0,0.03411]
[1757780031378,0.23573974,115760.0,115750.0,0.03611]
[1757780032081,0.23573974,115760.0,115750.0,0.03811]
[1757780032376,0.03265624,115760.0,115750.0,0.03811]
[1757780032571,0.23573974,115760.0,115750.0,0.03811]
[1757780033075,0.39345624,115760.0,115750.0,0.03811]
[1757780033275,0.59653974,115760.0,115750.0,0.03811]
[1757780034080,0.39345624,115760.0,115750.0,0.03811]
[1757780034377,0.59653974,115760.0,115750.0,0.03811]
[1757780034580,0.94808149,115760.0,115750.0,0.004]
[1757780034781,0.84653974,115760.0,115750.0,0.004]
[1757780035180,0.8775131,115760.0,115750.0,0.004]
[1757780035880,1.7353931,115760.0,115750.0,0.004]
[1757780036584,0.8775131,115760.0,115750.0,0.004]
[1757780036785,1.7353931,115760.0,115750.0,0.004]
[1757780037276,1.78185429,115760.0,115750.0,0.004]
[1757780038481,1.88339604,115760.0,115750.0,0.004]
[1757780038879,1.78185429,115760.0,115750.0,0.004]
[1757780039480,0.92397429,115760.0,115750.0,0.004]
[1757780039682,1.78161429,115760.0,115750.0,0.004]
[1757780040181,1.78157429,115760.0,115750.0,0.004]
[1757780040683,0.92397429,115760.0,115750.0,0.004]
[1757780040881,1.78153429,115760.0,115750.0,0.004]
[1757780041785,1.88307604,115760.0,115750.0,0.004]
[1757780042282,1.02551604,115760.0,115750.0,0.004]
[1757780042782,1.78137429,115760.0,115750.0,0.004]
[1757780043582,1.78137429,115760.0,115750.0,0.03913]
[1757780043981,1.78129429,115760.0,115750.0,0.03913]
[1757780044387,1.78129429,115760.0,115750.0,0.01712]
[1757780044590,0.92397429,115760.0,115750.0,0.03913]
[1757780044988,0.8775131,115760.0,115750.0,0.03913]
[1757780045183,0.6744296,115760.0,115750.0,0.03913]
[1757780045389,0.8775131,115760.0,115750.0,0.03913]
[1757780046089,0.6275131,115760.0,115750.0,0.03913]
[1757780046290,0.52597135,115760.0,115750.0,0.14067175]
[1757780046489,0.6275131,115760.0,115750.0,0.03913]
[1757780049992,0.52597135,115760.0,115750.0,0.28913]
[1757780050192,0.6275131,115760.0,115750.0,0.28913]
[1757780050885,0.4244296,115760.0,115750.0,0.28913]
[1757780051185,0.6275131,115760.0,115750.0,0.28913]
[1757780051385,0.4244296,115760.0,115750.0,0.28913]
[1757780051580,0.6275131,115760.0,115750.0,0.28913]
[1757780052495,0.6275131,115760.0,115750.0,0.004]
[1757780052789,0.6275131,115760.0,115750.0,0.02601]
[1757780053191,0.6275131,115760.0,115750.0,0.03913]
[1757780057696,0.4244296,115760.0,115750.0,0.03913]
[1757780057898,0.6275131,115760.0,115750.0,0.03913]
[1757780060200,0.67397429,115760.0,115750.0,0.03913]
[1757780065601,0.6275131,115760.0,115750.0,0.03913]
[1757780082424,0.5260255,115760.0,115750.0,0.03913]
[1757780083125,0.74505214,115760.0,115750.0,0.004]
[1757780083321,0.8776214,115760.0,115750.0,0.004]
[1757780083624,0.01094,115730.0,115720.0,0.03491]
[1757780083817,0.13425214,115730.0,115720.0,0.24491]
[1757780084118,0.39345624,115730.0,115720.0,0.24491]
[1757780084324,0.49505214,115730.0,115720.0,0.24491]
[1757780084521,0.39345624,115730.0,115720.0,0.24491]
[1757780084922,0.49505214,115730.0,115720.0,0.24491]
[1757780085624,0.49505214,115730.0,115720.0,0.25091]
[1757780085824,0.50367923,115730.0,115720.0,0.25091]
[1757780086225,0.50367923,115730.0,115720.0,0.25391]
[1757780086922,0.40208333,115730.0,115720.0,0.25391]
[1757780087121,0.39345624,115730.0,115720.0,0.25391]
[1757780087824,0.03524624,115730.0,115720.0,0.25391]
[1757780088223,0.39604624,115730.0,115720.0,0.25391]
[1757780090928,0.46529004,115730.0,115720.0,0.25391]
[1757780094134,0.56688594,115730.0,115720.0,0.25391]
[1757780094434,0.56688594,115730.0,115720.0,0.24791]
[1757780094732,0.56688594,115730.0,115720.0,0.24891]
[1757780095123,0.56688594,115730.0,115720.0,0.24591]
[1757780095324,0.56688594,115730.0,115720.0,0.24691]
[1757780095835,0.46529004,115730.0,115720.0,0.24691]
[1757780096526,0.56688594,115730.0,115720.0,0.24691]
[1757780096931,0.46529004,115730.0,115720.0,0.24691]
[1757780097232,0.49764214,115730.0,115720.0,0.24691]
[1757780102534,0.39604624,115730.0,115720.0,0.24691]
[1757780102837,0.49764214,115730.0,115720.0,0.24691]
[1757780103638,0.49505214,115730.0,115720.0,0.24691]
[1757780106234,0.49764214,115730.0,115720.0,0.24691]
[1757780112644,0.39604624,115730.0,115720.0,0.24691]
[1757780113145,0.49764214,115730.0,115720.0,0.24691]
[1757780114342,0.42706186,115730.0,115720.0,0.24691]
[1757780114543,0.52865776,115730.0,115720.0,0.24691]
[1757780116439,0.42706186,115730.0,115720.0,0.24691]
[1757780116642,0.52865776,115730.0,115720.0,0.24691]
[1757780117246,0.42706186,115730.0,115720.0,0.24691]
[1757780117447,0.52865776,115730.0,115720.0,0.24691]
[1757780118349,0.77865776,115730.0,115720.0,0.24691]
[1757780119348,0.67706186,115730.0,115720.0,0.24691]
[1757780119641,0.31626186,115730.0,115720.0,0.24691]
[1757780119942,0.64604624,115730.0,115720.0,0.24691]
[1757780120150,0.72352305,115730.0,115720.0,0.24691]
[1757780120446,0.67706186,115730.0,115720.0,0.24691]
[1757780126256,0.77865776,115730.0,115720.0,0.24691]
[1757780127053,0.82511895,115730.0,115720.0,0.24691]
[1757780127254,0.77865776,115730.0,115720.0,0.24691]
[1757780129054,0.72352305,115730.0,115720.0,0.24691]
[1757780129254,0.82511895,115730.0,115720.0,0.24691]
[1757780129751,0.77865776,115730.0,115720.0,0.24691]
[1757780130451,0.67706186,115730.0,115720.0,0.24691]
[1757780130652,0.77865776,115730.0,115720.0,0.24691]
[1757780135864,0.82511895,115730.0,115720.0,0.24691]
[1757780138161,0.72352305,115730.0,115720.0,0.24691]
[1757780138465,0.82511895,115730.0,115720.0,0.24691]
[1757780138967,0.72352305,115730.0,115720.0,0.24691]
[1757780139264,0.57511895,115730.0,115720.0,0.24691]
[1757780141068,0.47352305,115730.0,115720.0,0.24691]
[1757780141259,0.57511895,115730.0,115720.0,0.24691]
[1757780142266,0.5786013,115730.0,115720.0,0.24691]
[1757780142767,0.4770054,115730.0,115720.0,0.24691]
[1757780143063,0.54758568,115730.0,115720.0,0.212]
[1757780143366,0.55141568,115730.0,115720.0,0.212]
[1757780143667,0.55141568,115730.0,115720.0,0.002]
[1757780144162,0.58248093,115730.0,115720.0,0.002]
[1757780144365,1.5036874,115730.0,115720.0,0.002]
[1757780145068,1.7536874,115730.0,115720.0,0.002]
[1757780145268,1.70722621,115730.0,115720.0,0.002]
[1757780145468,1.75378961,115730.0,115720.0,0.002]
[1757780151769,1.75346961,115730.0,115720.0,0.002]
[1757780153669,0.44609199,115730.0,115720.0,0.002]
[1757780153876,1.49951961,115730.0,115720.0,0.002]
[1757780155579,0.64939961,115730.0,115720.0,0.03707]
[1757780155871,0.57874592,115730.0,115720.0,0.28707]
[1757780156076,1.38222252,115730.0,115720.0,0.28707]
[1757780156379,1.38218252,115730.0,115720.0,0.28707]
[1757780157275,0.53218252,115730.0,115720.0,0.40632868]
[1757780157974,0.43052871,115730.0,115720.0,0.40632868]
[1757780158172,0.39952859,115730.0,115720.0,0.40632868]
[1757780158574,0.5011824,115730.0,115720.0,0.40632868]
[1757780159074,0.39952859,115730.0,115720.0,0.40632868]
[1757780159270,0.5011824,115730.0,115720.0,0.40632868]
[1757780159681,0.1403824,115730.0,115720.0,0.40632868]
[1757780159979,0.5011824,115730.0,115720.0,0.40632868]
[1757780160479,0.39952859,115730.0,115720.0,0.30467487]
[1757780160681,0.5011824,115730.0,115720.0,0.30467487]
[1757780161574,0.5011824,115730.0,115720.0,0.40632868]
[1757780161975,0.39952859,115730.0,115720.0,0.40632868]
[1757780162279,0.1403824,115730.0,115720.0,0.40632868]
[1757780162872,0.1403824,115730.0,115720.0,0.30467487]
[1757780163078,0.39952859,115730.0,115720.0,0.30467487]
[1757780163483,0.5011824,115730.0,115720.0,0.30467487]
[1757780163783,0.5011824,115730.0,115720.0,0.40632868]
[1757780163978,0.5011824,115730.0,115720.0,0.30467487]
[1757780169580,0.39952859,115730.0,115720.0,0.30467487]
[1757780169781,0.5011824,115730.0,115720.0,0.30467487]
[1757780171979,0.60283621,115730.0,115720.0,0.002]
[1757780172485,0.60283621,115730.0,115720.0,0.02329]
[1757780172684,0.60283621,115730.0,115720.0,0.03707]
[1757780172882,0.39952859,115730.0,115720.0,0.03707]
[1757780173188,0.5011824,115730.0,115720.0,0.03707]
[1757780175086,1.45586621,115730.0,115720.0,0.002]
[1757780175286,1.48686633,115730.0,115720.0,0.002]
[1757780175981,1.75242961,115730.0,115720.0,0.002]
[1757780178189,1.50846838,115730.0,115690.0,0.01289]
[1757780178386,0.01094,115700.0,115690.0,0.23418]
[1757780178582,0.11259381,115700.0,115690.0,0.23418]
[1757780178783,0.23944621,115700.0,115690.0,0.23418]
[1757780178984,0.60024621,115700.0,115690.0,0.23418]
[1757780179190,0.60887203,115700.0,115690.0,0.23418]
[1757780179388,0.40556441,115700.0,115690.0,0.23518]
[1757780179587,0.40556441,115700.0,115690.0,0.23618]
[1757780179787,0.60887203,115700.0,115690.0,0.23618]
[1757780179989,0.60887203,115700.0,115690.0,0.24018]
[1757780180288,0.40556441,115700.0,115690.0,0.24218]
[1757780180489,0.60887203,115700.0,115690.0,0.24218]
[1757780180683,0.39693859,115700.0,115690.0,0.24218]
[1757780180887,0.60024621,115700.0,115690.0,0.24218]
[1757780181188,0.39693859,115700.0,115690.0,0.24218]
[1757780181390,0.46575813,115700.0,115690.0,0.24218]
[1757780181580,0.46834813,115700.0,115690.0,0.24218]
[1757780181779,0.67165575,115700.0,115690.0,0.24218]
[1757780181987,0.46834813,115700.0,115690.0,0.24218]
[1757780182387,0.67165575,115700.0,115690.0,0.24218]
[1757780182583,0.46834813,115700.0,115690.0,0.24218]
[1757780182782,0.57000194,115700.0,115690.0,0.34383381]
[1757780182988,0.46834813,115700.0,115690.0,0.24218]
[1757780183190,0.57000194,115700.0,115690.0,0.24218]
[1757780183493,0.57000194,115700.0,115690.0,0.34383381]
[1757780184089,0.57000194,115700.0,115690.0,0.24218]
[1757780184287,0.46834813,115700.0,115690.0,0.34383381]
[1757780184488,0.39952859,115700.0,115690.0,0.61120632]
[1757780184688,0.38858859,115700.0,115690.0,0.61120632]
[1757780184889,0.5011824,115700.0,115690.0,0.61120632]
[1757780185392,0.1403824,115700.0,115690.0,0.97200632]
[1757780185693,0.02778859,115700.0,115690.0,0.97200632]
[1757780186494,0.03872859,115700.0,115690.0,0.87035251]
[1757780186694,0.1403824,115700.0,115690.0,0.97200632]
[1757780187183,0.1294424,115700.0,115690.0,0.97200632]
[1757780187492,0.02778859,115700.0,115690.0,0.67035251]
[1757780187691,0.02778859,115700.0,115690.0,1.10200632]
[1757780188484,0.02778859,115700.0,115690.0,1.00035251]
[1757780188889,0.02778859,115700.0,115690.0,1.10200632]
[1757780189493,0.02778859,115700.0,115690.0,1.00035251]
[1757780189687,0.1294424,115700.0,115690.0,1.00035251]
[1757780189889,0.24203621,115700.0,115690.0,0.75035251]
[1757780192096,0.1403824,115700.0,115690.0,0.75035251]
[1757780192398,0.1403824,115700.0,115690.0,0.85200632]
[1757780192596,0.1403824,115700.0,115690.0,0.75035251]
[1757780192894,0.02778859,115700.0,115690.0,0.85200632]
[1757780193197,0.02778859,115700.0,115690.0,0.75035251]
[1757780193496,0.02778859,115700.0,115690.0,0.85200632]
[1757780193691,0.02778859,115700.0,115690.0,0.75035251]
[1757780193892,0.02778859,115700.0,115690.0,0.85200632]
[1757780194390,0.02778859,115700.0,115690.0,0.75035251]
[1757780194596,0.02778859,115700.0,115690.0,0.85200632]
[1757780194799,0.1294424,115700.0,115690.0,0.85200632]
[1757780195296,0.02778859,115700.0,115690.0,0.85200632]
[1757780195489,0.1294424,115700.0,115690.0,0.85200632]
[1757780195891,0.02778859,115700.0,115690.0,0.85200632]
[1757780196092,0.03872859,115700.0,115690.0,0.85200632]
[1757780196293,0.02778859,115700.0,115690.0,0.85200632]
[1757780197895,0.00259,115700.0,115690.0,1.20366013]
[1757780198510,0.00259,115700.0,115690.0,1.00035251]
[1757780198810,0.00259,115700.0,115690.0,1.10200632]
[1757780199510,0.00259,115700.0,115690.0,0.85200632]
[1757780201413,0.02683381,115700.0,115690.0,0.85200632]
[1757780202112,0.02683381,115700.0,115690.0,0.75035251]
[1757780202312,0.02683381,115700.0,115690.0,0.85200632]
[1757780204008,0.00259,115700.0,115690.0,0.85200632]
[1757780204210,0.02684191,115700.0,115690.0,0.85200632]
[1757780204416,0.02684191,115700.0,115690.0,0.85200451]
[1757780206419,0.02684191,115700.0,115690.0,0.75035251]
[1757780206812,0.03778191,115700.0,115690.0,1.59975251]
[1757780207419,0.13943391,115700.0,115690.0,1.59975251]
[1757780207820,0.03778191,115700.0,115690.0,0.75035251]
[1757780208021,0.13943391,115700.0,115690.0,1.59975251]
[1757780208222,0.03778191,115700.0,115690.0,1.59975251]
[1757780208521,0.13943391,115700.0,115690.0,1.59975251]
[1757780208721,0.13943391,115700.0,115690.0,1.23895251]
[1757780209321,0.03778191,115700.0,115690.0,1.23895251]
[1757780209922,0.50023391,115700.0,115690.0,1.23891251]
[1757780210222,0.64858191,115700.0,115690.0,1.23891251]
[1757780210415,0.75023391,115700.0,115690.0,1.23891251]
[1757780210720,0.64858191,115700.0,115690.0,1.23891251]
[1757780214317,0.02684191,115700.0,115690.0,1.70136451]
[1757780216723,0.02684191,115700.0,115690.0,1.59971251]
[1757780217024,0.02684191,115700.0,115690.0,1.70136451]
[1757780217725,0.02684191,115700.0,115690.0,1.59971251]
[1757780217920,0.03778191,115700.0,115690.0,0.75035251]
[1757780218123,0.03778191,115700.0,115690.0,1.59959251]
[1757780220528,0.13943391,115700.0,115690.0,0.75035251]
[1757780220727,0.13943391,115700.0,115690.0,1.23875251]
[1757780221527,0.03778191,115700.0,115690.0,0.38955251]
[1757780221726,0.13943391,115700.0,115690.0,1.23871251]
[1757780221925,0.03778191,115700.0,115690.0,1.23871251]
[1757780222225,0.13943391,115700.0,115690.0,1.23871251]
[1757780222733,0.03778191,115700.0,115690.0,1.23871251]
[1757780222935,0.13943391,115700.0,115690.0,1.23871251]
[1757780223235,0.03778191,115700.0,115690.0,1.23871251]
[1757780225431,0.39858191,115700.0,115690.0,1.23871251]
[1757780226028,0.39858191,115700.0,115690.0,0.38955251]
[1757780226232,0.39858191,115700.0,115690.0,1.23863251]
[1757780226634,0.50023391,115700.0,115690.0,1.23863251]
[1757780228635,0.39858191,115700.0,115690.0,1.23863251]
[1757780228831,0.50023391,115700.0,115690.0,1.23863251]
[1757780229237,0.39858191,115700.0,115690.0,1.23863251]
[1757780231038,0.03778191,115700.0,115690.0,1.23863251]
[1757780231429,0.39858191,115700.0,115690.0,0.90863251]
[1757780231636,0.53124571,115700.0,115690.0,0.90863251]
[1757780232738,0.50023391,115700.0,115690.0,0.90863251]
[1757780233532,0.53124571,115700.0,115690.0,0.90863251]
[1757780234133,0.50023391,115700.0,115690.0,0.90863251]
[1757780234336,0.39858191,115700.0,115690.0,0.90863251]
[1757780237537,0.50023391,115700.0,115690.0,0.90863251]
[1757780237731,0.39858191,115700.0,115690.0,0.90863251]
[1757780237935,0.03778191,115700.0,115690.0,0.90863251]
[1757780238743,0.13943391,115700.0,115690.0,0.90863251]
[1757780238931,0.03778191,115700.0,115690.0,0.90863251]
[1757780239136,0.39858191,115700.0,115690.0,0.90863251]
[1757780239343,0.50023391,115700.0,115690.0,0.90863251]
[1757780240245,0.50023391,115700.0,115690.0,0.05955251]
[1757780240439,0.53124571,115700.0,115690.0,0.90823251]
[1757780240739,0.59906324,115700.0,115690.0,0.05955251]
[1757780241943,0.49741124,115700.0,115690.0,0.05955251]
[1757780242144,0.59906324,115700.0,115690.0,0.05955251]
[1757780242443,0.84906324,115700.0,115690.0,0.05955251]
[1757780247845,0.89558095,115700.0,115690.0,0.05655251]
[1757780248147,0.79392895,115700.0,115690.0,0.05155251]
[1757780248343,0.89558095,115700.0,115690.0,0.05155251]
[1757780249948,0.79392895,115700.0,115690.0,0.05155251]
[1757780250138,0.89558095,115700.0,115690.0,0.05155251]
[1757780250338,0.84906324,115700.0,115690.0,0.05155251]
[1757780251746,0.74741124,115700.0,115690.0,0.05155251]
[1757780252048,0.84906324,115700.0,115690.0,0.05155251]
[1757780253247,0.84906324,115700.0,115690.0,0.03026251]
[1757780253450,0.84906324,115700.0,115690.0,0.05251251]
[1757780254248,0.84906324,115700.0,115690.0,0.03514]
[1757780255458,0.89558095,115700.0,115690.0,0.03514]
[1757780258256,0.79392895,115700.0,115690.0,0.03514]
[1757780258449,0.74741124,115700.0,115690.0,0.03514]
[1757780258652,0.84906324,115700.0,115690.0,0.03514]
[1757780259258,0.59906324,115700.0,115690.0,0.03514]
[1757780266368,0.74732253,115700.0,115690.0,0.03514]
[1757780266769,0.74732253,115700.0,115690.0,0.01289]
[1757780267168,0.74732253,115700.0,115690.0,0.03514]
[1757780271568,1.59480253,115700.0,115690.0,0.03514]
[1757780271774,0.05785371,115700.0,115690.0,0.85763679]
[1757780271968,0.1704905,115700.0,115690.0,0.28514]
[1757780272181,0.06879371,115700.0,115690.0,0.86763679]
[1757780272369,0.05785371,115700.0,115690.0,0.86763679]
[1757780272763,0.02684191,115700.0,115690.0,1.25763679]
[1757780274272,0.02684191,115700.0,115690.0,1.15594]
[1757780274470,0.02684191,115700.0,115690.0,1.25763679]
[1757780278172,0.02684191,115700.0,115690.0,2.10479679]
[1757780278373,0.02684191,115700.0,115690.0,1.25763679]
[1757780278577,0.02684191,115700.0,115690.0,2.10479679]
[1757780278777,0.02684191,115700.0,115690.0,2.20649358]
[1757780278974,0.49350859,115720.0,115690.0,2.20649358]
[1757780279178,0.54012676,115720.0,115710.0,0.13758679]
[1757780279473,0.43842997,115720.0,115710.0,0.41758679]
[1757780279779,0.54012676,115720.0,115710.0,0.41758679]
[1757780279976,0.54112676,115720.0,115710.0,0.41758679]
[1757780280376,0.54112676,115720.0,115710.0,0.03589]
[1757780280971,0.54312676,115720.0,115710.0,0.03589]
[1757780282276,0.51211496,115720.0,115710.0,0.03589]
[1757780282674,0.41041817,115720.0,115710.0,0.03589]
[1757780282873,0.51211496,115720.0,115710.0,0.03589]
[1757780283272,0.40941817,115720.0,115710.0,0.03589]
[1757780283481,0.51011496,115720.0,115710.0,0.03589]
[1757780283780,0.51111496,115720.0,115710.0,0.03589]
[1757780284286,0.61281175,115720.0,115710.0,0.03589]
[1757780284775,0.40941817,115720.0,115710.0,0.13758679]
[1757780285080,0.51111496,115720.0,115710.0,0.03589]
[1757780285281,0.51111496,115720.0,115710.0,0.13758679]
[1757780285682,0.61281175,115720.0,115710.0,0.03589]
[1757780286684,0.61281175,115720.0,115710.0,0.13758679]
[1757780286881,0.61281175,115720.0,115710.0,0.03589]
[1757780287082,0.61281175,115720.0,115710.0,0.13758679]
[1757780287680,0.61281175,115720.0,115710.0,0.03589]
[1757780288080,0.40941817,115720.0,115710.0,0.03589]
[1757780288281,0.61281175,115720.0,115710.0,0.03589]
[1757780296578,0.61281175,115720.0,115710.0,0.13758679]
[1757780296989,0.15031496,115720.0,115710.0,0.13758679]
[1757780297288,0.15031496,115720.0,115710.0,0.39758679]
[1757780297684,0.02649817,115720.0,115710.0,0.29589]
[1757780297990,0.12819496,115720.0,115710.0,0.39758679]
[1757780298591,0.15031496,115720.0,115710.0,0.39758679]
[1757780298888,0.04861817,115720.0,115710.0,0.39758679]
[1757780299088,0.02649817,115720.0,115710.0,0.38758679]
[1757780299281,0.02649817,115720.0,115710.0,0.93758679]
[1757780300286,0.02649817,115720.0,115710.0,1.29838679]
[1757780300696,0.02449817,115720.0,115710.0,1.29838679]
[1757780300993,0.02449817,115720.0,115710.0,2.14438679]
[1757780303196,0.02449817,115720.0,115710.0,2.04269]
[1757780303386,0.02449817,115720.0,115710.0,2.14418679]
[1757780303593,0.02449817,115720.0,115710.0,1.29838679]
[1757780303790,0.02449817,115720.0,115710.0,2.14414679]
[1757780304190,0.02449817,115720.0,115710.0,2.04245]
[1757780304498,0.02449817,115720.0,115710.0,2.14414679]
[1757780306395,0.02449817,115720.0,115710.0,2.04245]
[1757780306596,0.02449817,115720.0,115710.0,1.89414679]
[1757780306900,0.02449817,115720.0,115710.0,2.14414679]
[1757780308193,0.02449817,115720.0,115710.0,1.19669]
[1757780308796,0.02449817,115720.0,115710.0,1.29838679]
[1757780309098,0.12619496,115720.0,115710.0,1.29838679]
[1757780309502,0.02449817,115720.0,115710.0,1.29838679]
[1757780309704,0.12619496,115720.0,115710.0,1.29838679]
[1757780311200,0.02449817,115720.0,115710.0,1.29838679]
[1757780311395,0.12619496,115720.0,115710.0,2.14378679]
[1757780312108,0.12619496,115720.0,115710.0,2.16104245]
[1757780313309,0.12619496,115720.0,115710.0,1.31564245]
[1757780313610,0.12619496,115720.0,115710.0,2.16096245]
[1757780314208,0.12619496,115720.0,115710.0,1.21394566]
[1757780314415,0.12619496,115720.0,115710.0,2.16088245]
[1757780315409,0.12619496,115720.0,115710.0,2.05918566]
[1757780315610,0.12619496,115720.0,115710.0,2.16088245]